Cogmind - Beta 10.2 @@@ ROGUE MODE // 2021.02.05 @ 18:17:52 Player: cavemonk Result: Destroyed by 8R-AWN with 8R-AWN's Boregun Performance ------------- Evolutions (0) 0 Regions Visited (3) 600 Robots Destroyed (25) 125 Value Destroyed (506) 506 Prototype IDs (23) 460 Alien Tech Used (0) 0 Bonus (-1113) -1113 TOTAL SCORE: 578 Bonus ------- Aligned with FarCom 300 Friendly Fire -1413 Cogmind --------- Core Integrity 0/250 Matter 44/300 Energy 100/100 System Corruption 6% Temperature Cool (0) Movement Walking (130) Ox1 Location -10/Exiles Parts ------- > --- POWER (1) -------- (None) > --- PROPULSION (2) --- Light Treads Potential Leg > --- UTILITY (2) ------ Large Storage Unit High-capacity Storage Unit > --- WEAPON (2) ------- Autogun Autogun > --- INVENTORY (18) --- Light Nuclear Core Improved Heat Sink Medium Storage Unit Large Storage Unit Large Storage Unit Large Matter Pod (81) Hacking Suite Light EM Pulse Cannon Light EM Pulse Cannon Latent Energy Streamer Autogun Rocket Launcher Rocket Launcher Rocket Launcher Peak State ------------ > --- POWER ------------ Ion Engine > --- PROPULSION ------- Potential Leg Potential Leg > --- UTILITY ---------- Large Storage Unit High-capacity Storage Unit > --- WEAPON ----------- Latent Energy Streamer > --- INVENTORY -------- Light Nuclear Core Light Treads Improved Heat Sink Medium Storage Unit Large Storage Unit Large Storage Unit Hacking Suite Light EM Pulse Cannon Light EM Pulse Cannon Autogun Autogun Autogun Autogun Autogun Autogun Rocket Launcher Rocket Launcher Rocket Launcher [Rating: 36] Favorites ----------- Power Ion Engine Engine Ion Engine Power Core Light Nuclear Core Propulsion Light Treads Treads Light Treads Leg Potential Leg Wheel Wheel Utility Large Storage Unit Device Improved Terrain Scanner Storage Large Storage Unit Weapon Autogun Energy Cannon Light EM Pulse Cannon Ballistic Gun Autogun Launcher Rocket Launcher Build | -11 -10 -10 -10 ------- Run | Scr Mat Min Exi Slots Evolved . | . . . . Power . | . . . . Propulsion . | . . . . Utility . | . . . . Weapon . | . . . . Parts Attached 41 | 8 18 4 11 Power 6 | 1 3 1 1 Engine 5 | 1 3 . 1 Core 1 | . . 1 . Reactor . | . . . . Propulsion 13 | 2 7 1 3 Treads 6 | 1 3 1 1 Leg 2 | . . . 2 Wheel 5 | 1 4 . . Hover . | . . . . Flight . | . . . . Utility 6 | 3 2 . 1 Device 1 | 1 . . . Storage 5 | 2 2 . 1 Processor . | . . . . Hackware . | . . . . Protection . | . . . . Artifact . | . . . . Weapon 16 | 2 6 2 6 Energy Gun . | . . . . Energy Cannon 3 | . 2 . 1 Ballistic Gun 12 | 2 4 1 5 Ballistic Cannon . | . . . . Launcher 1 | . . 1 . Special Weapon . | . . . . Impact Weapon . | . . . . Slashing Weapon . | . . . . Piercing Weapon . | . . . . Special Melee Weapon . | . . . . Unidentified Prototypes . | . . . . Parts Lost 5 | . 1 . 4 Power 2 | . 1 . 1 Propulsion . | . . . . Utility . | . . . . Weapon 3 | . . . 3 Highest Loss Streak 4 | . 1 . 4 Average Slot Usage (%) 99 | . 98 100 96 Engine 12 | . 12 13 8 Core 1 | . . . 5 Treads 25 | . 15 27 22 Wheel 1 | . 12 . . Storage 28 | . 28 28 28 Ballistic Gun 27 | . 24 27 24 Naked Turns . | . . . . Heaviest Build 63 | 13 43 44 63 Greatest Support 60 | 20 40 40 60 Greatest Overweight (x) 14 | . 4 14 3 Average Overweight (x) 4 | . 2 9 . Largest Inventory Capacity 18 | 8 16 16 18 Average Capacity 15 | 6 11 16 16 Most Carried 18 | 6 16 16 18 Average Carried 15 | 3 10 15 16 Final Capacity 18 | 8 16 16 18 Final Carried 16 | 6 16 16 14 Class Distribution -------------------- 100% | Mutant Dominant Class ---------------- Mutant | -10/Materials Mutant | -10/Mines Mutant | -10/Exiles Resources | -11 -10 -10 -10 ----------- Run | Scr Mat Min Exi Matter Collected 1083 | 314 322 268 179 Remotely . | . . . . Salvage Created 978 | 161 354 281 182 Parts 55 | 8 27 20 . Haulers Intercepted 1 | . 1 . . Recyclers Shooed 1 | 1 . . . Parts Field Recycled . | . . . . Retrieved Matter . | . . . . Parts Self-Destructed . | . . . . Prevented . | . . . . Kills | -11 -10 -10 -10 ------- Run | Scr Mat Min Exi Combat Hostiles Destroyed 18 | . 8 10 . Guns 18 | . 8 10 . Classes Destroyed 9 | 2 5 . 2 Tunneler 3 | 3 . . . Hauler 1 | . 1 . . Recycler 1 | 1 . . . Operator 1 | . 1 . . Turret 1 | . . . 1 Watcher 1 | . 1 . . Swarmer 9 | . 3 6 . Grunt 9 | . 5 4 . Assembled 7 | . . . 7 Best Kill Streak 3 | 3 3 3 1 Combat Bots Only 3 | . 3 3 . Max Kills in Single Turn 7 | 1 2 2 7 Gunslinging 1 | . . 1 . Exploded . | . . . . Melee . | . . . . Uniques/NPCs Destroyed . | . . . . Combat | -11 -10 -10 -10 -------- Run | Scr Mat Min Exi Damage Taken 1607 | . 463 155 989 Core 258 | . 88 10 160 Absorbed by Shields . | . . . . Core Remaining (%) 100 | 100 . . . Volleys Fired 121 | 17 45 15 44 Largest 2 | 2 2 2 2 Hottest 112 | 40 112 46 60 Shots Fired 240 | 34 90 30 86 Gun 234 | 34 86 30 84 Cannon 6 | . 4 . 2 Launcher . | . . . . Special . | . . . . Kinetic 234 | 34 86 30 84 Thermal . | . . . . Explosive . | . . . . Electromagnetic 6 | . 4 . 2 Robot Hit Streak 8 | 6 5 8 8 Robot Miss Streak 5 | 3 3 2 5 Penetration Max . | . . . . Secondary Targets 4 | . 3 1 . Max Gunslinging Chain 1 | . 1 1 . Shots Hit Robots 150 | 19 52 20 59 Core Hits 53 | 9 17 13 14 Critical Hits 1 | . 1 . . Critical Kills 1 | . 1 . . Critical Parts Destroyed . | . . . . Melee Attacks . | . . . . Impact . | . . . . Slashing . | . . . . Piercing . | . . . . Sneak Attacks . | . . . . Combat Hostiles . | . . . . Follow-up Attacks . | . . . . Damage Inflicted 2729 | 132 633 311 1653 Guns 1940 | 132 627 311 870 Cannons . | . . . . Explosions 783 | . . . 783 Melee . | . . . . Ramming 6 | . 6 . . Kinetic 1940 | 132 627 311 870 Thermal . | . . . . Explosive . | . . . . Electromagnetic 783 | . . . 783 Impact . | . . . . Slashing . | . . . . Piercing . | . . . . Highest Corruption 6 | . . . 6 Average Corruption 5 | . . . 5 Corruption Purged . | . . . . Effects 8 | . . . 8 Message Errors 1 | . . . 1 Matter Fused 1 | . . . 1 Energy Discharges 1 | . . . 1 Parts Rejected 1 | . . . 1 Data Loss (minor) 1 | . . . 1 Targeting Errors 3 | . . . 3 Overload Shots . | . . . . Overflow Damage 2 | . . . 2 Projectiles . | . . . . Explosions 2 | . . . 2 Melee . | . . . . Knockbacks 1 | . 1 . . Impact 1 | . 1 . . Kinetic . | . . . . Secondary . | . . . . Self-Inflicted Damage . | . . . . Shots . | . . . . Rammed 1 | . 1 . . Targets Rammed 1 | . 1 . . Kicked . | . . . . Crushed . | . . . . Highest Temperature 51 | . 51 19 20 Average Temperature 8 | . 10 7 7 Received Heat Transfer 186 | . 144 42 . Siege Activations . | . . . . Robots Corrupted 1 | . . . 1 Combat Hostiles . | . . . . Parts Fried . | . . . . Impact Corruptions . | . . . . Robots Melted . | . . . . Combat Hostiles . | . . . . Parts Melted . | . . . . Heat Transferred . | . . . . Parts Sabotaged . | . . . . Parts Stolen . | . . . . Parts Stripped . | . . . . Power Chain Reactions . | . . . . Missiles Intercepted . | . . . . Latent Energy Used 400 | . . . 400 LE Corruption 6 | . . . 6 Alert | -11 -10 -10 -10 ------- Run | Scr Mat Min Exi Peak Influence 226 | 20 226 200 . Initial 13 | . 13 . . Average 27 | 13 101 16 . Maximum Alert Level 1 | . 1 1 . Low Security (%) 96 | 100 92 96 . Level 1 3 | . 7 3 . Level 2 . | . . . . Level 3 . | . . . . Level 4 . | . . . . Level 5 . | . . . . High Security . | . . . . Max Security . | . . . . Squads Dispatched 2 | . 2 . . Investigation . | . . . . Extermination . | . . . . Reinforcement 2 | . 2 . . Assault . | . . . . Garrison . | . . . . Intercept . | . . . . Construction Impeded . | . . . . Haulers Reinforced . | . . . . Stealth | -11 -10 -10 -10 --------- Run | Scr Mat Min Exi Distress Signals 3 | . 2 1 . Communications Jammed . | . . . . Distress Signals . | . . . . Times Spotted 27 | . 17 9 1 Peak Tracking Total 5 | . 5 3 3 Tactical Retreats 2 | . . 1 1 Traps | -11 -10 -10 -10 ------- Run | Scr Mat Min Exi Traps Triggered . | . . . . Indirectly . | . . . . Trap Hack Attempts . | . . . . Triggered . | . . . . Disarmed . | . . . . Reprogrammed . | . . . . Reused . | . . . . Traps Extracted . | . . . . Installed . | . . . . Triggered 1 | . . 1 . Machines | -11 -10 -10 -10 ---------- Run | Scr Mat Min Exi Machines Disabled 6 | . 1 . 5 Max in Single Turn 3 | . 1 . 3 Machines Sabotaged . | . . . . Garrisons Compromised . | . . . . Overloaded Fab Kills . | . . . . Fab Network Shutdowns . | . . . . Hacking | -11 -10 -10 -10 --------- Run | Scr Mat Min Exi Machines Accessed 5 | . 4 . 1 Terminals 4 | . 4 . . Fabricators . | . . . . Repair Stations . | . . . . Recycling Units . | . . . . Scanalyzers . | . . . . Garrison Access . | . . . . Total Hacks 11 | . 10 . 1 Successful 4 | . 3 . 1 Failed 7 | . 7 . . Catastrophic 2 | . 2 . . Database Lockouts . | . . . . Manual 9 | . 8 . 1 Terminals 10 | . 10 . . Fabricators . | . . . . Repair Stations . | . . . . Recycling Units . | . . . . Scanalyzers . | . . . . Garrison Access . | . . . . Terminal Hacks 3 | . 2 . 1 Terminal Index 1 | . 1 . . Hauler Manifests 1 | . 1 . . EX-Prototype ID Bank 1 | . . . 1 Fabricator Hacks . | . . . . Repair Station Hacks . | . . . . Recycling Unit Hacks . | . . . . Scanalyzer . | . . . . Garrison Access Hacks . | . . . . Unauthorized Hacks 1 | . 1 . . Terminals 1 | . 1 . . Track 1 | . 1 . . Fabricators . | . . . . Repair Stations . | . . . . Recycling Units . | . . . . Scanalyzers . | . . . . Garrison Access . | . . . . Data Cores Recovered . | . . . . Used . | . . . . Hacking Detections 4 | . 4 . . Full Trace Events . | . . . . Feedback Events . | . . . . Feedback Blocked . | . . . . Robot Schematics Acquired . | . . . . Robots Built . | . . . . Matter . | . . . . Time . | . . . . Total Robot Build Rating . | . . . . Part Schematics Acquired . | . . . . Parts Built . | . . . . Matter . | . . . . Time . | . . . . Total Part Build Rating . | . . . . Parts Repaired . | . . . . Time . | . . . . Parts Recycled . | . . . . Recycled Matter . | . . . . Retrieved Matter . | . . . . Retrieved Components . | . . . . Parts Scanalyzed . | . . . . Part Schematics Acquired . | . . . . Parts Damaged . | . . . . Bothacking | -11 -10 -10 -10 ------------ Run | Scr Mat Min Exi Used RIF Installer . | . . . . Robots Hacked . | . . . . Non-combat . | . . . . Combat . | . . . . Robot Hacks Applied . | . . . . Relay Couplers Released . | . . . . Robots Rewired . | . . . . Allies Hacked . | . . . . Hacks Repelled . | . . . . Allies | -11 -10 -10 -10 -------- Run | Scr Mat Min Exi Total Allies . | . . . . Largest Group . | . . . . Highest-Rated Group . | . . . . Highest-Rated Ally . | . . . . Total Orders . | . . . . Ally Attacks . | . . . . Total Damage . | . . . . Kills . | . . . . Allies Corrupted . | . . . . Allies Melted . | . . . . Intel | -11 -10 -10 -10 ------- Run | Scr Mat Min Exi Robot Analysis Total . | . . . . Derelict Logs Recovered 1 | . . 1 . Drone Launches . | . . . . Drone Recoveries . | . . . . Exploration | -11 -10 -10 -10 ------------- Run | Scr Mat Min Exi Turns Passed 7834 | 168 806 5628 1232 Spaces Moved 2166 | 82 564 889 631 Core 575 | 2 . 573 . Treads 900 | 51 16 303 530 Legs 101 | . . . 101 Wheels 590 | 29 548 13 . Hover . | . . . . Flight . | . . . . Fastest Speed 50 | 50 90 120 90 Average Speed 306 | 129 105 546 171 Slowest Speed 750 | 160 200 750 220 Overloaded Moves . | . . . . Propulsion Burnouts . | . . . . Robots Hopped . | . . . . Cave-ins Triggered . | . . . . Exploration Rate (%) 51 | 4 72 62 69 Regions Visited 3 Branch Regions 2 Pre-discovered Areas . | . . . . Known Exits Taken . | . . . . Unknown Exits Taken 3 | 1 1 1 . Scrap Searched 1 | . . 1 . Spaces Dug . | . . . . Terrain Destroyed 14 | . . . 14 Melee . | . . . . Projectile . | . . . . AOE 14 | . . . 14 Terrain Rammed . | . . . . Walls Destroyed . | . . . . Machines Disabled . | . . . . Actions | -11 -10 -10 -10 --------- Run | Scr Mat Min Exi Total 3167 | 114 703 1635 715 Wait 777 | 1 43 721 12 Move 2163 | 81 563 888 631 Hop . | . . . . Pick Up 33 | 6 18 3 6 Fast Attach 13 | 7 2 1 3 Attach 8 | 1 1 . 6 Detach 4 | 1 . . 3 Swap 20 | . 15 3 2 Drop 27 | . 15 4 8 Fire 121 | 17 45 15 44 Melee . | . . . . Ram . | . . . . Kick . | . . . . Crush 1 | . 1 . . Escape Stasis . | . . . . Rewire . | . . . . Trap . | . . . . Miscellaneous . | . . . . Route ------- -11/Scrapyard -10/Materials (discovered 2 exits: [*Mat] / [*Min]) -10/Mines (discovered 2 exits: [*Mat] / *Exi) -10/Exiles History --------- Turn | Location | Event 18 | -11/Scrapyard | Discovered new exit (range 14) 169 | -11/Scrapyard | Entered Materials 340 | -10/Materials | Build established: Mutant 356 | -10/Materials | Discovered new exit (range 12) 802 | -10/Materials | Discovered new exit (range 10) 975 | -10/Materials | Entered Mines 976 | -10/Mines | Assembled infested the area 6359 | -10/Mines | Discovered new exit (range 4) 6517 | -10/Mines | Learned Materials garrison access intel 6596 | -10/Mines | Deemed a non-threat by the Exiles lab entrance 6596 | -10/Mines | Discovered new exit (range 5) 6603 | -10/Mines | Entered Exiles 6648 | -10/Exiles | Met 8R-AWN 6677 | -10/Exiles | Met EX-HEX 6742 | -10/Exiles | Met EX-BIN 6860 | -10/Exiles | Aligned with FarCom system 6862 | -10/Exiles | Given EX-Vault access code 6912 | -10/Exiles | Opened EX-Vault 6927 | -10/Exiles | Found Latent Energy Streamer 6968 | -10/Exiles | Warned to stay clear of 0b10 Research branches 7190 | -10/Exiles | Met EX-DEC 7569 | -10/Exiles | Found Potential Leg 7573 | -10/Exiles | Found Potential Leg 7663 | -10/Exiles | Attacked by the Exiles 7725 | -10/Exiles | Core integrity fell below 50% 7798 | -10/Exiles | Core integrity fell below 20% 7819 | -10/Exiles | Lost 4 parts (1p3w) 7835 | -10/Exiles | Destroyed by 8R-AWN with 8R-AWN's Boregun Last Messages --------------- 07809_ HV Slug penetrates Earth. 07809_ Penetrated by HV Slug. 07809_ HV Slug penetrates Components. 07814_ Penetrated by HV Slug. 07817_ Extracted 100 matter. 07818_ HV Slug penetrates Wall. 07818_ HV Slug penetrates Earth. 07818_ HV Slug penetrates Wall. 07822_ Penetrated by HV Slug. 07822_ HV Slug penetrates Wall. 07822_ Penetrated by HV Slug. 07822_ HV Slug penetrates Wall. 07826_ Penetrated by HV Slug. 07826_ HV Slug penetrates Wall. 07826_ Penetrated by HV Slug. 07826_ HV Slug penetrates Wall. 07829_ System corrupted: Component data lost. 07831_ Penetrated by HV Slug. 07831_ HV Slug penetrates Wall. 07835_ Penetrated by HV Slug. Map ----- +----------------------------------------------------+ | ???????????????????????????????????????# ##""" | | ???????????????????????????????????????# ## | | ???????????????????????????????????????# | | ???????????????????????????????????????# ## | | ?????????????????????????????????####??# ##""" | | ?????????????????????????????????"""""?# ##### | | ????????????????????????????????"""" ## #???? | | ???????????????????????????????#""X" #???? | | ???????????????????????????????#" #???? | | ???????????????????????????????#" ## #???? | | ???????????????????????????????#""""""?# #?### | | ?????????????????????? ?????????#"###??# #?#"" | | ?????????????????????? ##??????????????# #?#"" | | ?????????????????????? ??????????????# #?#"" | | ?????????????????????? ?????????????## ###"" | | ??????#######?????????? #????????????#" | | ??????#!!! "#?????????? ##??????????#" | | ??????# "#?????????? #??????????#" | | ??????# "#??????????# #??????????#" | | #????## ""#??????????#;;;####???????#" | | #####" ""#??????????# " "#???????#" | | ##" ""???????????# " "#???????## | | #"" #???????????## #????????# | | #???????????#; #????????#" "X | | ##???????????# "#????????#" "" | | # "#???????????#!@= "#????????#" """" | | " ###?????????#" ""#???????##" ##### | | " ##????????##; ###??????##"" #???? | | "###"" ######???### g###?######"" #???? | | "#?##" """#####X# #"###""""""" ##??? | | ##??#" """""" " "" ##?? | | "###???#"# "" """ " ### | | ##?????#### " " | | ??????????### | | ????????????### | | ??????????????## | | ???????????????## | | ????????????????##" | | ?????????????????#""" """""" | | ????????????????##" ######""" | | ????????????????#"" ""##????#####""" | | ???????????????##""" """##?????????##""" | | ???????????????#""" """##???????????#""" | | ???????????????#""" ""#???????????##"" | | ???????????????#"" ###?####?????#"""" | | ???????????????#""" ## ###?""" | | ???????????????#"" """" | | ???????????????##"" | | ????????????????#"""" | | ????????????????## | +----------------------------------------------------+ Best States ------------- Heat Dissipation 25 Energy Generation 14 Energy Capacity 250 Matter Stores 300 Matter Capacity 300 Sight Range 16 Terrain Scan Range 16 Terrain Scan Density 10 Evasion (%) 44 Recoil Reduction 2 Item Schematics ----------------- None Robot Schematics ------------------ None Fabricated ------------ Nothing Alien Tech Used ----------------- None Achievements -------------- None Challenges ------------ None Game ------ Seed RemoteBattleLauncher Manual? 0 Play Time 00:26:37 Cumulative 176.0 hours Start 2021.02.05 @ 17:52:53 End 2021.02.05 @ 18:17:52 Sessions 1 Manual Loads 0 Difficulty Rogue Special Mode None Game No. 104 Rogue 104 Adventurer 0 Explorer 0 Win Type - Total 3 Types 3/0/0/0/0/0/0/0/0 Lore% 38 Gallery% 64 Achievement% 50 Wizard Run 0 Options --------- ASCII 0 Keyboard 0 Movement Numpad Keybinds 0 Fullscreen 2 Font 18/TerminusBold Map View 76x50 Tactical HUD 1 Map Filters NONE Filters NONE Steam 1 RUN: 5dce356f-ee79-42c9-b3af-a0014629c0d6